[Event "Early-Titled-Tuesday-Blitz-January-16-2024"]
[Site "Chess.com"]
[Date "2024.01.16"]
[Round "6"]
[White "bazar-wokzal"]
[Black "Soledadense88"]
[Result "1-0"]
[WhiteElo "2598"]
[BlackElo "2405"]
[TimeControl "180+1"]
[EndTime "9:10:55 PST"]
[Termination "bazar-wokzal won by resignation"]

1. e4 {[%clk 0:03:00.9]} 1... e6 {[%clk 0:03:00.1]} 2. d4 {[%clk 0:03:00.3]}
2... d5 {[%clk 0:03:00.3]} 3. e5 {[%clk 0:03:00.8]} 3... c5 {[%clk 0:02:59.9]}
4. c3 {[%clk 0:03:01]} 4... Nc6 {[%clk 0:02:59.9]} 5. Nf3 {[%clk 0:03:01.4]}
5... Qb6 {[%clk 0:02:51.2]} 6. Be2 {[%clk 0:03:01.5]} 6... Nh6 {[%clk
0:02:40.1]} 7. Bxh6 {[%clk 0:02:58.3]} 7... Qxb2 {[%clk 0:02:31.2]} 8. Nbd2
{[%clk 0:02:38.1]} 8... gxh6 {[%clk 0:02:29.1]} 9. O-O {[%clk 0:02:35.6]} 9...
Qxc3 {[%clk 0:02:04.4]} 10. Rc1 {[%clk 0:02:33.3]} 10... Qa5 {[%clk 0:02:03.3]}
11. dxc5 {[%clk 0:02:33.3]} 11... Qc7 {[%clk 0:01:53.4]} 12. Nb3 {[%clk
0:02:31.2]} 12... Nxe5 {[%clk 0:01:41.5]} 13. Nxe5 {[%clk 0:02:30.6]} 13... Qxe5
{[%clk 0:01:41.9]} 14. Bb5+ {[%clk 0:02:30.6]} 14... Bd7 {[%clk 0:01:40.7]} 15.
Re1 {[%clk 0:02:31]} 15... Qc7 {[%clk 0:01:32.3]} 16. Bd3 {[%clk 0:02:11.1]}
16... Bg7 {[%clk 0:01:28.3]} 17. Qg4 {[%clk 0:02:04.5]} 17... O-O {[%clk
0:01:22.6]} 18. Qf3 {[%clk 0:01:56.3]} 18... f5 {[%clk 0:01:15.9]} 19. Kh1
{[%clk 0:01:31.9]} 19... Kh8 {[%clk 0:01:14.9]} 20. Bb1 {[%clk 0:01:22.9]} 20...
Rae8 {[%clk 0:01:03.6]} 21. Rg1 {[%clk 0:01:18.7]} 21... Bc6 {[%clk 0:00:53]}
22. Qh3 {[%clk 0:01:09.2]} 22... Qf4 {[%clk 0:00:46.5]} 23. Na5 {[%clk
0:01:01.6]} 23... Qxf2 {[%clk 0:00:43.2]} 24. Nxc6 {[%clk 0:00:46.4]} 24... bxc6
{[%clk 0:00:44.1]} 25. g4 {[%clk 0:00:46.7]} 25... fxg4 {[%clk 0:00:34.4]} 26.
Qxg4 {[%clk 0:00:31.8]} 26... Qf3+ {[%clk 0:00:34.5]} 27. Qxf3 {[%clk
0:00:30.3]} 27... Rxf3 {[%clk 0:00:35.4]} 28. Rg4 {[%clk 0:00:25.4]} 28... Ref8
{[%clk 0:00:26.8]} 29. Rcg1 {[%clk 0:00:21.4]} 29... Bd4 {[%clk 0:00:25.5]} 30.
Rxd4 {[%clk 0:00:20.4]} 30... e5 {[%clk 0:00:24.5]} 31. Ra4 {[%clk 0:00:19.5]}
31... Rf1 {[%clk 0:00:20.6]} 32. Rxa7 {[%clk 0:00:18.5]} 32... e4 {[%clk
0:00:19.9]} 33. Bc2 {[%clk 0:00:16.1]} 33... Rxg1+ {[%clk 0:00:10.9]} 34. Kxg1
{[%clk 0:00:16.5]} 34... Kg8 {[%clk 0:00:09.6]} 35. Rc7 {[%clk 0:00:16.1]} 35...
Rf6 {[%clk 0:00:09.5]} 36. a4 {[%clk 0:00:14.9]} 36... e3 {[%clk 0:00:08.5]} 37.
Bd3 {[%clk 0:00:14.3]} 37... Rf2 {[%clk 0:00:08.5]} 38. Rxc6 {[%clk 0:00:12.9]}
38... Rd2 {[%clk 0:00:08.7]} 39. Bb5 {[%clk 0:00:12.9]} 39... e2 {[%clk
0:00:08.8]} 40. Kf2 {[%clk 0:00:13.1]} 40... Rb2 {[%clk 0:00:08.6]} 41. Bxe2
{[%clk 0:00:12.9]} 41... d4 {[%clk 0:00:08.7]} 42. Kf3 {[%clk 0:00:13.2]} 42...
Ra2 {[%clk 0:00:08.5]} 43. Bc4+ {[%clk 0:00:13]} 43... Kg7 {[%clk 0:00:08.9]}
44. Bxa2 {[%clk 0:00:13.9]} 1-0

[Event "Early-Titled-Tuesday-Blitz-January-16-2024"]
[Site "Chess.com"]
[Date "2024.01.16"]
[Round "6"]
[White "PepeCuenca"]
[Black "Nf3c5"]
[Result "1-0"]
[WhiteElo "2702"]
[BlackElo "2557"]
[TimeControl "180+1"]
[EndTime "9:10:56 PST"]
[Termination "PepeCuenca won on time"]

1. d4 {[%clk 0:03:00.1]} 1... Nf6 {[%clk 0:02:57.3]} 2. Bf4 {[%clk 0:03:00.4]}
2... d5 {[%clk 0:02:54.9]} 3. e3 {[%clk 0:03:00.5]} 3... c5 {[%clk 0:02:53.9]}
4. dxc5 {[%clk 0:03:01.4]} 4... e6 {[%clk 0:02:43.4]} 5. b4 {[%clk 0:03:01.1]}
5... a5 {[%clk 0:02:38]} 6. c3 {[%clk 0:03:00.7]} 6... b6 {[%clk 0:02:26.9]} 7.
Bxb8 {[%clk 0:02:39.4]} 7... Rxb8 {[%clk 0:02:23.7]} 8. Bb5+ {[%clk 0:02:39.9]}
8... Ke7 {[%clk 0:02:18]} 9. c6 {[%clk 0:02:24.4]} 9... axb4 {[%clk 0:02:10.3]}
10. cxb4 {[%clk 0:02:24.3]} 10... Qd6 {[%clk 0:01:58.1]} 11. a3 {[%clk
0:02:09.3]} 11... Ne8 {[%clk 0:01:46.2]} 12. Nc3 {[%clk 0:02:03.4]} 12... g5
{[%clk 0:01:37.8]} 13. Nge2 {[%clk 0:01:57.2]} 13... Bg7 {[%clk 0:01:35.6]} 14.
Rc1 {[%clk 0:01:53.1]} 14... Nc7 {[%clk 0:01:32.3]} 15. O-O {[%clk 0:01:46.5]}
15... Ra8 {[%clk 0:01:25.6]} 16. Qb3 {[%clk 0:01:42.4]} 16... h5 {[%clk
0:01:10.7]} 17. Rfd1 {[%clk 0:01:37.4]} 17... h4 {[%clk 0:01:05]} 18. a4 {[%clk
0:01:11.6]} 18... h3 {[%clk 0:00:54.1]} 19. g3 {[%clk 0:01:10.6]} 19... Qe5
{[%clk 0:00:51.4]} 20. Bd3 {[%clk 0:00:57.4]} 20... Rd8 {[%clk 0:00:41.3]} 21.
b5 {[%clk 0:00:56]} 21... Kf8 {[%clk 0:00:35.7]} 22. Nd4 {[%clk 0:00:55.2]}
22... Kg8 {[%clk 0:00:30.1]} 23. Bf1 {[%clk 0:00:53]} 23... g4 {[%clk
0:00:29.6]} 24. Nce2 {[%clk 0:00:42.9]} 24... Qf6 {[%clk 0:00:29.2]} 25. Nc2
{[%clk 0:00:20.9]} 25... e5 {[%clk 0:00:28.1]} 26. Nb4 {[%clk 0:00:19.7]} 26...
Be6 {[%clk 0:00:27.3]} 27. Qc2 {[%clk 0:00:15.1]} 27... Bf5 {[%clk 0:00:22.1]}
28. Qb3 {[%clk 0:00:08.7]} 28... Be4 {[%clk 0:00:22.1]} 29. Nc3 {[%clk
0:00:04.8]} 29... Bf3 {[%clk 0:00:18.8]} 30. Rd2 {[%clk 0:00:04.1]} 30... d4
{[%clk 0:00:17.8]} 31. exd4 {[%clk 0:00:03.2]} 31... exd4 {[%clk 0:00:18.1]} 32.
Ne2 {[%clk 0:00:03.5]} 32... Nd5 {[%clk 0:00:13.2]} 33. Rcd1 {[%clk 0:00:02.5]}
33... Nxb4 {[%clk 0:00:03.8]} 34. Qxb4 {[%clk 0:00:03.4]} 34... Bd5 {[%clk
0:00:04]} 35. Nxd4 {[%clk 0:00:03.2]} 35... Qg6 {[%clk 0:00:03.3]} 36. Ne2
{[%clk 0:00:02.8]} 36... Qe6 {[%clk 0:00:01.6]} 37. Nf4 {[%clk 0:00:03.1]} 37...
Qe4 {[%clk 0:00:01.8]} 38. Qxe4 {[%clk 0:00:03.5]} 38... Bxe4 {[%clk 0:00:01.9]}
39. Rxd8+ {[%clk 0:00:04.4]} 1-0

[Event "Early-Titled-Tuesday-Blitz-January-16-2024"]
[Site "Chess.com"]
[Date "2024.01.16"]
[Round "6"]
[White "abelmat"]
[Black "KSho99"]
[Result "0-1"]
[WhiteElo "2061"]
[BlackElo "2192"]
[TimeControl "180+1"]
[EndTime "9:10:56 PST"]
[Termination "KSho99 won by checkmate"]

1. d4 {[%clk 0:03:00.9]} 1... e6 {[%clk 0:02:58.4]} 2. c4 {[%clk 0:02:50.6]}
2... f5 {[%clk 0:02:58.1]} 3. Nf3 {[%clk 0:02:48.6]} 3... Nf6 {[%clk 0:02:58.3]}
4. g3 {[%clk 0:02:48.1]} 4... d5 {[%clk 0:02:58.3]} 5. Bg2 {[%clk 0:02:46.1]}
5... Be7 {[%clk 0:02:58.6]} 6. O-O {[%clk 0:02:44.7]} 6... Ne4 {[%clk 0:02:59]}
7. b3 {[%clk 0:02:44]} 7... Nc6 {[%clk 0:02:57.9]} 8. Bb2 {[%clk 0:02:42.5]}
8... h5 {[%clk 0:02:57.3]} 9. h4 {[%clk 0:02:39]} 9... g5 {[%clk 0:02:50.1]} 10.
Nxg5 {[%clk 0:02:29.5]} 10... Bxg5 {[%clk 0:02:50.2]} 11. hxg5 {[%clk
0:02:28.9]} 11... Qxg5 {[%clk 0:02:50.3]} 12. cxd5 {[%clk 0:02:26.4]} 12... exd5
{[%clk 0:02:50.2]} 13. Nc3 {[%clk 0:02:23.2]} 13... Be6 {[%clk 0:02:39.4]} 14.
Nb5 {[%clk 0:02:09]} 14... O-O-O {[%clk 0:02:36.1]} 15. Rc1 {[%clk 0:02:06.6]}
15... a6 {[%clk 0:01:52.4]} 16. a4 {[%clk 0:01:56.7]} 16... h4 {[%clk
0:01:31.2]} 17. Rxc6 {[%clk 0:01:47.6]} 17... bxc6 {[%clk 0:01:30.3]} 18. Na7+
{[%clk 0:01:41.3]} 18... Kb7 {[%clk 0:01:26.9]} 19. Nxc6 {[%clk 0:01:29.7]}
19... Kxc6 {[%clk 0:01:24.2]} 20. Qc2+ {[%clk 0:01:25.2]} 20... Kb7 {[%clk
0:00:48.6]} 21. Rc1 {[%clk 0:01:22.3]} 21... Qe7 {[%clk 0:00:41]} 22. Qc6+
{[%clk 0:01:15.6]} 22... Ka7 {[%clk 0:00:34.8]} 23. g4 {[%clk 0:00:38.9]} 23...
fxg4 {[%clk 0:00:23.3]} 24. Bxe4 {[%clk 0:00:38.1]} 24... dxe4 {[%clk
0:00:21.4]} 25. d5 {[%clk 0:00:34.7]} 25... Bxd5 {[%clk 0:00:15.7]} 26. Bd4+
{[%clk 0:00:29.6]} 26... Kb8 {[%clk 0:00:15.4]} 27. Qxa6 {[%clk 0:00:27.8]}
27... Bb7 {[%clk 0:00:10.7]} 28. Ba7+ {[%clk 0:00:12]} 28... Kc8 {[%clk
0:00:02.7]} 29. Qa5 {[%clk 0:00:12.4]} 29... Rd6 {[%clk 0:00:01.7]} 30. Qf5+
{[%clk 0:00:09.6]} 30... Qd7 {[%clk 0:00:01.5]} 31. Qxe4 {[%clk 0:00:07.6]}
31... Bxe4 {[%clk 0:00:01]} 32. e3 {[%clk 0:00:04.6]} 32... Rd1+ {[%clk
0:00:01.9]} 33. Kh2 {[%clk 0:00:02.7]} 33... Qd6+ {[%clk 0:00:02]} 34. f4 {[%clk
0:00:02.1]} 34... gxf3+ {[%clk 0:00:02.6]} 35. Kh3 {[%clk 0:00:02.2]} 35... Bf5#
{[%clk 0:00:03.2]} 0-1

[Event "Early-Titled-Tuesday-Blitz-January-16-2024"]
[Site "Chess.com"]
[Date "2024.01.16"]
[Round "6"]
[White "only_strong_moves"]
[Black "Buzhizhebuguai"]
[Result "0-1"]
[WhiteElo "2534"]
[BlackElo "2672"]
[TimeControl "180+1"]
[EndTime "9:10:57 PST"]
[Termination "Buzhizhebuguai won on time"]

1. e4 {[%clk 0:03:00.9]} 1... e6 {[%clk 0:02:58.7]} 2. d4 {[%clk 0:02:59.8]}
2... d5 {[%clk 0:02:59.6]} 3. Nd2 {[%clk 0:02:58]} 3... dxe4 {[%clk 0:02:57.5]}
4. Nxe4 {[%clk 0:02:57.2]} 4... Bd7 {[%clk 0:02:58.4]} 5. Nf3 {[%clk 0:02:55.4]}
5... Bc6 {[%clk 0:02:58.8]} 6. Bd3 {[%clk 0:02:55.8]} 6... Nd7 {[%clk
0:02:59.2]} 7. O-O {[%clk 0:02:51.9]} 7... Ngf6 {[%clk 0:02:59.5]} 8. Re1 {[%clk
0:02:52.3]} 8... Nxe4 {[%clk 0:02:58]} 9. Bxe4 {[%clk 0:02:53.2]} 9... Bxe4
{[%clk 0:02:58.9]} 10. Rxe4 {[%clk 0:02:54.1]} 10... c6 {[%clk 0:02:59.1]} 11.
b3 {[%clk 0:02:50]} 11... Be7 {[%clk 0:02:57.5]} 12. Re1 {[%clk 0:02:46.5]}
12... Bf6 {[%clk 0:02:54.8]} 13. Bb2 {[%clk 0:02:46]} 13... a5 {[%clk
0:02:54.7]} 14. c4 {[%clk 0:02:40.8]} 14... O-O {[%clk 0:02:51.8]} 15. Qc2
{[%clk 0:02:40.4]} 15... a4 {[%clk 0:02:49.4]} 16. Rad1 {[%clk 0:02:07.3]} 16...
Qa5 {[%clk 0:02:37]} 17. Ne5 {[%clk 0:01:48.4]} 17... Rfd8 {[%clk 0:02:25.4]}
18. Bc3 {[%clk 0:01:46.2]} 18... Qc7 {[%clk 0:02:17.7]} 19. Nf3 {[%clk
0:01:40.1]} 19... b5 {[%clk 0:02:08.6]} 20. Bb4 {[%clk 0:01:27.4]} 20... Qb7
{[%clk 0:01:56.4]} 21. Bd6 {[%clk 0:01:21]} 21... axb3 {[%clk 0:01:43.7]} 22.
axb3 {[%clk 0:01:20.4]} 22... Nb6 {[%clk 0:01:43]} 23. Be5 {[%clk 0:01:18.7]}
23... Nd7 {[%clk 0:01:39]} 24. Bd6 {[%clk 0:01:14.2]} 24... Nb6 {[%clk 0:01:26]}
25. Be5 {[%clk 0:01:08.9]} 25... Qe7 {[%clk 0:01:18.8]} 26. Bxf6 {[%clk
0:01:03.9]} 26... Qxf6 {[%clk 0:01:18.8]} 27. Ne5 {[%clk 0:01:04.6]} 27... Rdc8
{[%clk 0:01:13.7]} 28. Ra1 {[%clk 0:00:54.1]} 28... bxc4 {[%clk 0:00:57.2]} 29.
bxc4 {[%clk 0:00:50.9]} 29... Rxa1 {[%clk 0:00:55.3]} 30. Rxa1 {[%clk
0:00:50.7]} 30... c5 {[%clk 0:00:50.2]} 31. Qb2 {[%clk 0:00:34.9]} 31... cxd4
{[%clk 0:00:32.1]} 32. Qxd4 {[%clk 0:00:35.8]} 32... Qd8 {[%clk 0:00:30.9]} 33.
Qxd8+ {[%clk 0:00:27.7]} 33... Rxd8 {[%clk 0:00:31.3]} 34. c5 {[%clk 0:00:27.1]}
34... Nd5 {[%clk 0:00:30.4]} 35. c6 {[%clk 0:00:19.9]} 35... f6 {[%clk
0:00:26.6]} 36. Nf3 {[%clk 0:00:11.2]} 36... Rc8 {[%clk 0:00:23.6]} 37. Rc1
{[%clk 0:00:09.4]} 37... e5 {[%clk 0:00:23.1]} 38. Nd2 {[%clk 0:00:04.5]} 38...
Nb4 {[%clk 0:00:21.2]} 39. Rc4 {[%clk 0:00:04]} 39... Nxc6 {[%clk 0:00:19.6]}
40. g3 {[%clk 0:00:03.8]} 40... Kf7 {[%clk 0:00:19.5]} 41. Ne4 {[%clk
0:00:03.8]} 41... Ke6 {[%clk 0:00:19.1]} 42. Nc5+ {[%clk 0:00:03.1]} 42... Kd5
{[%clk 0:00:19.5]} 43. Rc1 {[%clk 0:00:02.8]} 43... Nd4 {[%clk 0:00:19.5]} 0-1

[Event "Early-Titled-Tuesday-Blitz-January-16-2024"]
[Site "Chess.com"]
[Date "2024.01.16"]
[Round "6"]
[White "Alimpic"]
[Black "the_blue_pill"]
[Result "1-0"]
[WhiteElo "2507"]
[BlackElo "2334"]
[TimeControl "180+1"]
[EndTime "9:10:58 PST"]
[Termination "Alimpic won by resignation"]

1. d4 {[%clk 0:03:00.9]} 1... Nf6 {[%clk 0:02:56.8]} 2. c4 {[%clk 0:03:01]} 2...
c5 {[%clk 0:02:56.4]} 3. d5 {[%clk 0:02:59.5]} 3... e6 {[%clk 0:02:56.6]} 4. Nc3
{[%clk 0:02:59.2]} 4... exd5 {[%clk 0:02:57.3]} 5. cxd5 {[%clk 0:03:00.1]} 5...
d6 {[%clk 0:02:57.9]} 6. e4 {[%clk 0:02:56.9]} 6... g6 {[%clk 0:02:58.4]} 7. Nf3
{[%clk 0:02:55.4]} 7... a6 {[%clk 0:02:55]} 8. a4 {[%clk 0:02:54.7]} 8... Bg4
{[%clk 0:02:54.8]} 9. Be2 {[%clk 0:02:54.1]} 9... Bxf3 {[%clk 0:02:54.9]} 10.
Bxf3 {[%clk 0:02:53.9]} 10... Bg7 {[%clk 0:02:54.3]} 11. O-O {[%clk 0:02:54.2]}
11... O-O {[%clk 0:02:53.4]} 12. Bf4 {[%clk 0:02:44.5]} 12... Qe7 {[%clk
0:02:53]} 13. Re1 {[%clk 0:02:44.1]} 13... Nbd7 {[%clk 0:02:53.1]} 14. a5 {[%clk
0:02:42]} 14... Rfe8 {[%clk 0:02:47.8]} 15. Qd2 {[%clk 0:02:32.6]} 15... Rab8
{[%clk 0:02:45.1]} 16. Be2 {[%clk 0:02:24]} 16... Ne5 {[%clk 0:02:21.6]} 17. h3
{[%clk 0:02:18.9]} 17... Nfd7 {[%clk 0:02:10.4]} 18. Bg5 {[%clk 0:02:12]} 18...
Bf6 {[%clk 0:02:08.7]} 19. Bxf6 {[%clk 0:02:08.7]} 19... Nxf6 {[%clk 0:02:06.6]}
20. f4 {[%clk 0:02:07.5]} 20... Ned7 {[%clk 0:02:06.5]} 21. Bf3 {[%clk
0:02:05.6]} 21... b5 {[%clk 0:02:03.7]} 22. axb6 {[%clk 0:02:01]} 22... Rxb6
{[%clk 0:02:01.7]} 23. Qe2 {[%clk 0:01:30.8]} 23... c4 {[%clk 0:01:39.3]} 24.
Qxc4 {[%clk 0:01:24.3]} 24... Rxb2 {[%clk 0:01:38.8]} 25. Qxa6 {[%clk
0:01:09.4]} 25... Nc5 {[%clk 0:01:34.3]} 26. Qc4 {[%clk 0:00:59.7]} 26... Rc2
{[%clk 0:01:28.7]} 27. e5 {[%clk 0:00:56.6]} 27... dxe5 {[%clk 0:01:15.5]} 28.
fxe5 {[%clk 0:00:57.5]} 28... Nfd7 {[%clk 0:01:10.3]} 29. e6 {[%clk 0:00:49]}
29... fxe6 {[%clk 0:01:00.8]} 30. dxe6 {[%clk 0:00:49.9]} 30... Nb6 {[%clk
0:00:51.4]} 31. Qb4 {[%clk 0:00:43.2]} 31... Nd3 {[%clk 0:00:46.3]} 32. Qxe7
{[%clk 0:00:22.6]} 32... Rxe7 {[%clk 0:00:44]} 33. Reb1 {[%clk 0:00:23.2]} 33...
Rxc3 {[%clk 0:00:30.8]} 34. Rxb6 {[%clk 0:00:22.7]} 34... Nf4 {[%clk 0:00:26.6]}
35. Ra8+ {[%clk 0:00:12.7]} 35... Kg7 {[%clk 0:00:25.6]} 36. Kh2 {[%clk
0:00:13.3]} 36... Nxe6 {[%clk 0:00:19.1]} 37. Rbb8 {[%clk 0:00:11.3]} 37... Ng5
{[%clk 0:00:15.1]} 38. Rg8+ {[%clk 0:00:11.6]} 38... Kh6 {[%clk 0:00:15.3]} 39.
Bg4 {[%clk 0:00:07.6]} 39... Re2 {[%clk 0:00:13.4]} 40. Bxe2 {[%clk 0:00:07.4]}
40... Ne6 {[%clk 0:00:08.4]} 41. Rge8 {[%clk 0:00:05.8]} 41... Nf4 {[%clk
0:00:08.1]} 42. Bf3 {[%clk 0:00:06.1]} 42... Rc2 {[%clk 0:00:07.9]} 43. Re7
{[%clk 0:00:05.4]} 1-0

[Event "Early-Titled-Tuesday-Blitz-January-16-2024"]
[Site "Chess.com"]
[Date "2024.01.16"]
[Round "6"]
[White "crescentmoon2411"]
[Black "Hikaru"]
[Result "1/2-1/2"]
[WhiteElo "2953"]
[BlackElo "3224"]
[TimeControl "180+1"]
[EndTime "9:10:59 PST"]
[Termination "Game drawn by repetition"]

1. d4 {[%clk 0:03:00.9]} 1... a6 {[%clk 0:02:58.4]} 2. c4 {[%clk 0:03:00.3]}
2... c5 {[%clk 0:02:52.7]} 3. d5 {[%clk 0:02:58.8]} 3... b5 {[%clk 0:02:50.3]}
4. e4 {[%clk 0:02:58.4]} 4... bxc4 {[%clk 0:02:50.6]} 5. Bxc4 {[%clk 0:02:52.9]}
5... d6 {[%clk 0:02:51.1]} 6. Nf3 {[%clk 0:02:50.5]} 6... g6 {[%clk 0:02:51.5]}
7. Bd2 {[%clk 0:02:50]} 7... Bg7 {[%clk 0:02:51.3]} 8. Bc3 {[%clk 0:02:50.4]}
8... Nf6 {[%clk 0:02:43.1]} 9. O-O {[%clk 0:02:46.7]} 9... O-O {[%clk
0:02:41.5]} 10. Qc2 {[%clk 0:02:42.5]} 10... Bg4 {[%clk 0:02:40.1]} 11. Nfd2
{[%clk 0:02:40]} 11... Bd7 {[%clk 0:02:38.3]} 12. a4 {[%clk 0:02:39.7]} 12... e5
{[%clk 0:02:20.8]} 13. dxe6 {[%clk 0:02:36.4]} 13... Bxe6 {[%clk 0:02:19.2]} 14.
Na3 {[%clk 0:02:24.4]} 14... Nc6 {[%clk 0:02:09.5]} 15. Rad1 {[%clk 0:02:21.6]}
15... d5 {[%clk 0:01:36]} 16. Bxf6 {[%clk 0:02:14.6]} 16... Bxf6 {[%clk
0:01:20.7]} 17. exd5 {[%clk 0:02:15]} 17... Nd4 {[%clk 0:01:04.7]} 18. Qe4
{[%clk 0:01:55.6]} 18... Bf5 {[%clk 0:01:04.3]} 19. Qf4 {[%clk 0:01:55.7]} 19...
Qb6 {[%clk 0:00:47.1]} 20. Ne4 {[%clk 0:01:28.2]} 20... Bg7 {[%clk 0:00:32.9]}
21. Ng3 {[%clk 0:01:16.1]} 21... Bd7 {[%clk 0:00:30.2]} 22. b3 {[%clk
0:01:05.5]} 22... Qb4 {[%clk 0:00:30.3]} 23. Qc1 {[%clk 0:01:05.8]} 23... Nxb3
{[%clk 0:00:30.2]} 24. Bxb3 {[%clk 0:01:04.6]} 24... Qxb3 {[%clk 0:00:31.1]} 25.
Nc4 {[%clk 0:00:59.4]} 25... Bxa4 {[%clk 0:00:28.4]} 26. Ne4 {[%clk 0:00:51.2]}
26... Bb5 {[%clk 0:00:27.2]} 27. Ned2 {[%clk 0:00:45.2]} 27... Qc3 {[%clk
0:00:24.3]} 28. Rfe1 {[%clk 0:00:43.8]} 28... a5 {[%clk 0:00:23.8]} 29. Re3
{[%clk 0:00:42.9]} 29... Qxc1 {[%clk 0:00:23.8]} 30. Rxc1 {[%clk 0:00:43.8]}
30... a4 {[%clk 0:00:24.5]} 31. Na3 {[%clk 0:00:42.2]} 31... Bd7 {[%clk
0:00:24.7]} 32. Re7 {[%clk 0:00:38.7]} 32... Bb2 {[%clk 0:00:24.1]} 33. Rc2
{[%clk 0:00:37.8]} 33... Bxa3 {[%clk 0:00:24.1]} 34. Rxd7 {[%clk 0:00:38.5]}
34... Bb4 {[%clk 0:00:25]} 35. Nc4 {[%clk 0:00:38.8]} 35... a3 {[%clk
0:00:22.6]} 36. Ra2 {[%clk 0:00:39]} 36... Rfe8 {[%clk 0:00:23.1]} 37. g3 {[%clk
0:00:38.8]} 37... Re4 {[%clk 0:00:23.5]} 38. Nd6 {[%clk 0:00:34.2]} 38... Rd4
{[%clk 0:00:23.3]} 39. Nxf7 {[%clk 0:00:33.7]} 39... Rd2 {[%clk 0:00:23.5]} 40.
Ra1 {[%clk 0:00:24.7]} 40... a2 {[%clk 0:00:22.6]} 41. Nh6+ {[%clk 0:00:16]}
41... Kh8 {[%clk 0:00:23]} 42. Nf7+ {[%clk 0:00:16]} 42... Kg7 {[%clk
0:00:23.6]} 43. Ng5+ {[%clk 0:00:16.2]} 43... Kg8 {[%clk 0:00:24]} 44. Ne4
{[%clk 0:00:15.2]} 44... Re2 {[%clk 0:00:06.8]} 45. Nf6+ {[%clk 0:00:15.4]}
45... Kf8 {[%clk 0:00:07.2]} 46. Nxh7+ {[%clk 0:00:15.9]} 46... Kg8 {[%clk
0:00:07.9]} 47. Nf6+ {[%clk 0:00:16.5]} 47... Kf8 {[%clk 0:00:08.5]} 48. Nh7+
{[%clk 0:00:17.3]} 48... Kg8 {[%clk 0:00:08.4]} 49. Nf6+ {[%clk 0:00:17.9]}
49... Kf8 {[%clk 0:00:09]} 50. Nh7+ {[%clk 0:00:18.3]} 1/2-1/2

[Event "Early-Titled-Tuesday-Blitz-January-16-2024"]
[Site "Chess.com"]
[Date "2024.01.16"]
[Round "6"]
[White "MITerryble"]
[Black "bancsoo"]
[Result "1/2-1/2"]
[WhiteElo "3029"]
[BlackElo "2937"]
[TimeControl "180+1"]
[EndTime "9:10:59 PST"]
[Termination "Game drawn by repetition"]

1. d4 {[%clk 0:03:00.9]} 1... d5 {[%clk 0:02:59.2]} 2. Bg5 {[%clk 0:03:00.3]}
2... h6 {[%clk 0:02:57.4]} 3. Bh4 {[%clk 0:03:00.3]} 3... c6 {[%clk 0:02:57]} 4.
e3 {[%clk 0:03:00.5]} 4... Qb6 {[%clk 0:02:56.4]} 5. b3 {[%clk 0:03:00.6]} 5...
Bf5 {[%clk 0:02:56.5]} 6. Nf3 {[%clk 0:02:59.4]} 6... e6 {[%clk 0:02:56.8]} 7.
Bd3 {[%clk 0:02:59.4]} 7... Bxd3 {[%clk 0:02:55.9]} 8. Qxd3 {[%clk 0:03:00.3]}
8... Nd7 {[%clk 0:02:56.4]} 9. O-O {[%clk 0:03:00.1]} 9... Ngf6 {[%clk
0:02:56.4]} 10. Nbd2 {[%clk 0:03:00.2]} 10... a5 {[%clk 0:02:55.2]} 11. c4
{[%clk 0:02:59.3]} 11... Bb4 {[%clk 0:02:51.6]} 12. a3 {[%clk 0:02:55]} 12...
Bxd2 {[%clk 0:02:50.1]} 13. Nxd2 {[%clk 0:02:55.9]} 13... O-O {[%clk 0:02:45.4]}
14. c5 {[%clk 0:02:38.6]} 14... Qa6 {[%clk 0:02:42.9]} 15. Qc2 {[%clk
0:02:35.6]} 15... Rfe8 {[%clk 0:02:38.5]} 16. f4 {[%clk 0:02:20.2]} 16... b6
{[%clk 0:02:33.3]} 17. cxb6 {[%clk 0:02:15.9]} 17... Qxb6 {[%clk 0:02:33.7]} 18.
Rfc1 {[%clk 0:02:11]} 18... Rec8 {[%clk 0:02:33.7]} 19. Qc3 {[%clk 0:02:06.4]}
19... Ne8 {[%clk 0:02:22.5]} 20. Be7 {[%clk 0:02:04.1]} 20... Qb8 {[%clk
0:02:14.8]} 21. b4 {[%clk 0:01:56.6]} 21... axb4 {[%clk 0:02:02.1]} 22. axb4
{[%clk 0:01:36.8]} 22... Rxa1 {[%clk 0:01:59.1]} 23. Rxa1 {[%clk 0:01:36.1]}
23... Nd6 {[%clk 0:01:59.3]} 24. Bxd6 {[%clk 0:01:25.5]} 24... Qxd6 {[%clk
0:01:58.9]} 25. Ra6 {[%clk 0:01:23.4]} 25... Rb8 {[%clk 0:01:54.1]} 26. Ra4
{[%clk 0:00:40.4]} 26... Nb6 {[%clk 0:01:41.9]} 27. Ra6 {[%clk 0:00:39.7]} 27...
Qd7 {[%clk 0:01:27.9]} 28. h3 {[%clk 0:00:32]} 28... Qb7 {[%clk 0:01:27.7]} 29.
Ra1 {[%clk 0:00:26.4]} 29... Nc8 {[%clk 0:01:20.7]} 30. Ra4 {[%clk 0:00:13.4]}
30... Ne7 {[%clk 0:01:18.5]} 31. Qc5 {[%clk 0:00:11.2]} 31... Nf5 {[%clk
0:01:13.9]} 32. Kf2 {[%clk 0:00:11.6]} 32... h5 {[%clk 0:00:51.4]} 33. g4 {[%clk
0:00:11.7]} 33... hxg4 {[%clk 0:00:51.7]} 34. hxg4 {[%clk 0:00:12.6]} 34... Nh6
{[%clk 0:00:50.6]} 35. Kg3 {[%clk 0:00:13]} 35... Qc8 {[%clk 0:00:48.2]} 36. Ra7
{[%clk 0:00:08.5]} 36... Ra8 {[%clk 0:00:39.9]} 37. Nf3 {[%clk 0:00:05.5]} 37...
Rxa7 {[%clk 0:00:39.1]} 38. Qxa7 {[%clk 0:00:06.4]} 38... f6 {[%clk 0:00:35.5]}
39. Qe7 {[%clk 0:00:04.1]} 39... Nf7 {[%clk 0:00:31.6]} 40. Nh4 {[%clk 0:00:03]}
40... Qb8 {[%clk 0:00:18.4]} 41. Qxe6 {[%clk 0:00:02.7]} 41... Qxb4 {[%clk
0:00:19.1]} 42. Qe8+ {[%clk 0:00:02.7]} 42... Kh7 {[%clk 0:00:13.3]} 43. Qxf7
{[%clk 0:00:01.8]} 43... Qe1+ {[%clk 0:00:14.1]} 44. Kh3 {[%clk 0:00:02.4]}
44... Qh1+ {[%clk 0:00:14.6]} 45. Kg3 {[%clk 0:00:02.4]} 45... Qe1+ {[%clk
0:00:15.3]} 46. Kh3 {[%clk 0:00:01.8]} 46... Qh1+ {[%clk 0:00:15.5]} 47. Kg3
{[%clk 0:00:02.5]} 47... Qe1+ {[%clk 0:00:16.3]} 1/2-1/2